fUST/lending_fUST_20250729
["ID","MTS","AMOUNT","RATE_DAILY","PERIOD"]
[375787901,1753746647743,-460.0,0.0002,2]
[375787902,1753746647753,-460.72,0.0002,2]
[375787903,1753746647763,-472.56,0.0002,2]
[375787904,1753746647773,-460.0,0.0002,2]
[375787905,1753746647783,-460.0,0.0002,2]
[375787906,1753746647794,-460.0,0.0002,2]
[375787907,1753746647803,-460.0,0.0002,2]
[375787908,1753746647813,-460.0,0.0002,2]
[375787909,1753746647823,-460.0,0.0002,2]
[375787910,1753746647833,-460.0,0.0002,2]
[375787911,1753746647843,-256.38,0.0002,2]
[375787912,1753746647852,-460.0,0.0002,2]
[375787913,1753746647862,-460.0,0.0002,2]
[375787914,1753746647872,-169.60272768,0.0002,2]
[375787915,1753746647882,-460.0,0.0002,2]
[375787916,1753746647892,-661.92,0.0002,2]
[375787917,1753746647902,-460.0,0.0002,2]
[375787918,1753746647912,-460.0,0.0002,2]
[375787919,1753746647922,-460.0,0.0002,2]
[375787920,1753746647932,-764.89,0.0002,2]
[375787921,1753746647945,-460.0,0.0002,2]
[375787922,1753746647954,-460.0,0.0002,2]
[375787923,1753746647964,-460.0,0.0002,2]
[375787924,1753746647974,-460.0,0.0002,2]
[375787925,1753746647983,-659.89,0.0002,2]
[375787926,1753746647993,-460.0,0.0002,2]
[375787927,1753746648003,-858.05,0.0002,2]
[375787928,1753746648012,-460.0,0.0002,2]
[375787929,1753746648022,-550.21,0.0002,2]
[375787930,1753746648032,-460.0,0.0002,2]
[375787931,1753746648042,-460.0,0.0002,2]
[375787932,1753746648053,-460.0,0.0002,2]
[375787933,1753746648063,-460.0,0.0002,2]
[375787934,1753746648073,-460.0,0.0002,2]
[375787935,1753746648083,-575.49,0.0002,2]
[375787936,1753746648093,-460.0,0.0002,2]
[375787937,1753746648103,-635.53,0.0002,2]
[375787938,1753746648113,-460.0,0.0002,2]
[375787939,1753746648122,-461.46,0.0002,2]
[375787940,1753746648132,-556.02,0.0002,2]
[375787941,1753746648146,-460.0,0.0002,2]
[375787942,1753746648156,-1884.06,0.0002,2]
[375787943,1753746648166,-460.0,0.0002,2]
[375787944,1753746648176,-460.0,0.0002,2]
[375787945,1753746648187,-460.0,0.0002,2]
[375787946,1753746648199,-544.24,0.0002,2]
[375787947,1753746648209,-713.28,0.0002,2]
[375787948,1753746648220,-460.0,0.0002,2]
[375787949,1753746648229,-460.0,0.0002,2]
[375787950,1753746648239,-460.0,0.0002,2]
[375787951,1753746648249,-500.0,0.00020021,2]
[375787952,1753746648259,-460.0,0.00020273,2]
[375787953,1753746648269,-460.0,0.00020273,2]
[375787954,1753746648280,-990.15,0.00020273,2]
[375787955,1753746648290,-460.0,0.00020273,2]
[375787956,1753746648301,-460.0,0.00020273,2]
[375787957,1753746648311,-460.0,0.00020273,2]
[375787958,1753746648321,-460.0,0.00020273,2]
[375787959,1753746648332,-460.0,0.00020273,2]
[375787960,1753746648342,-460.0,0.00020273,2]
[375787961,1753746648353,-473.82,0.00020273,2]
[375787962,1753746648363,-460.0,0.00020273,2]
[375787963,1753746648373,-460.0,0.00020273,2]
[375787964,1753746648383,-460.0,0.00020273,2]
[375787965,1753746648392,-460.0,0.00020273,2]
[375787966,1753746648403,-460.0,0.00020273,2]
[375787967,1753746648413,-460.0,0.00020273,2]
[375787968,1753746648422,-460.0,0.00020273,2]
[375787969,1753746648432,-460.0,0.00020273,2]
[375787970,1753746648443,-460.0,0.00020273,2]
[375787971,1753746648454,-460.0,0.00020273,2]
[375787972,1753746648463,-460.0,0.00020273,2]
[375787973,1753746648473,-460.0,0.00020273,2]
[375787974,1753746648483,-460.0,0.00020273,2]
[375787975,1753746648493,-460.0,0.00020273,2]
[375787976,1753746648503,-661.92,0.00020273,2]
[375787977,1753746648513,-460.0,0.00020273,2]
[375787978,1753746648523,-516.86155646,0.00020273,2]
[375787979,1753746648533,-764.89,0.00020273,2]
[375787980,1753746648544,-460.0,0.00020273,2]
[375787981,1753746648554,-460.0,0.00020273,2]
[375787982,1753746648564,-464.2,0.00020273,2]
[375787983,1753746648574,-659.89,0.00020273,2]
[375787984,1753746648584,-858.05,0.00020273,2]
[375787985,1753746648594,-460.0,0.00020273,2]
[375787986,1753746648604,-460.0,0.00020273,2]
[375787987,1753746648614,-460.0,0.00020273,2]
[375787988,1753746648623,-460.0,0.00020273,2]
[375787989,1753746648633,-460.0,0.00020273,2]
[375787990,1753746648643,-460.0,0.00020273,2]
[375787991,1753746648653,-460.0,0.00020273,2]
[375787992,1753746648663,-635.53,0.00020273,2]
[375787993,1753746648673,-460.0,0.00020273,2]
[375787994,1753746648683,-461.46,0.00020273,2]
[375787995,1753746648695,-556.02,0.00020273,2]
[375787996,1753746648705,-460.0,0.00020273,2]
[375787997,1753746648714,-1884.06,0.00020273,2]
[375787998,1753746648724,-460.0,0.00020273,2]
[375787999,1753746648734,-544.24,0.00020273,2]
[375788000,1753746648743,-713.28,0.00020273,2]
[375788001,1753746648753,-460.0,0.00020273,2]
[375788002,1753746648763,-460.0,0.00020273,2]
[375788003,1753746648772,-460.0,0.00020273,2]
[375788004,1753746648783,-737.68,0.00020538,3]
[375788005,1753746648793,-368.84,0.00020538,3]
[375788006,1753746648803,-565.6,0.00020547,2]
[375788007,1753746648812,-990.15,0.00020547,2]
[375788008,1753746648822,-331.65,0.00020547,2]
[375788009,1753746648833,-460.0,0.00020547,2]
[375788010,1753746648843,-460.0,0.00020547,2]
[375788011,1753746648854,-460.0,0.00020547,2]
[375788012,1753746648864,-460.0,0.00020547,2]
[375788013,1753746648874,-460.0,0.00020547,2]
[375788014,1753746648884,-460.0,0.00020547,2]
[375788015,1753746648893,-460.0,0.00020547,2]
[375788016,1753746648903,-420.0,0.00020547,2]
[375788017,1753746648913,-464.52,0.00020547,2]
[375788018,1753746648923,-460.0,0.00020547,2]
[375788019,1753746648933,-460.0,0.00020547,2]
[375788020,1753746648943,-334.26,0.00020547,2]
[375788021,1753746648954,-528.41,0.00020547,2]
[375788022,1753746648963,-460.0,0.00020547,2]
[375788023,1753746648974,-460.0,0.00020547,2]
[375788024,1753746648984,-661.92,0.00020547,2]
[375788025,1753746648994,-265.88737178,0.00020547,2]
[375788026,1753746649004,-460.0,0.00020547,2]
[375788027,1753746649014,-764.89,0.00020547,2]
[375788028,1753746649024,-192.31603521,0.00020547,2]
[375788029,1753746649034,-659.89,0.00020547,2]
[375788030,1753746649044,-858.05,0.00020547,2]
[375788031,1753746649054,-372.75,0.00020547,2]
[375788032,1753746649064,-460.0,0.00020547,2]
[375788033,1753746649074,-460.0,0.00020547,2]
[375788034,1753746649084,-460.0,0.00020547,2]
[375788035,1753746649094,-460.0,0.00020547,2]
[375788036,1753746649105,-236.14,0.00020547,2]
[375788037,1753746649116,-635.53,0.00020547,2]
[375788038,1753746649126,-460.0,0.00020547,2]
[375788039,1753746649137,-461.46,0.00020547,2]
[375788040,1753746649150,-556.02,0.00020547,2]
[375788041,1753746649160,-460.0,0.00020547,2]
[375788042,1753746649170,-1884.06,0.00020547,2]
[375788043,1753746649179,-460.0,0.00020547,2]
[375788044,1753746649191,-544.24,0.00020547,2]
[375788045,1753746649202,-713.28,0.00020547,2]
[375788046,1753746649212,-460.0,0.00020547,2]
[375788047,1753746649223,-460.0,0.00020547,2]
[375788048,1753746649235,-160.0,0.00020579,2]
[375788049,1753746649245,-160.0,0.00020579,2]
[375788050,1753746649255,-23.53958684,0.00020579,2]
[375788051,1753746649372,-2595.49833857,0.00020579,2]
[375788052,1753746649474,-366.99999997,0.00019178,2]
[375788053,1753746649486,-93.00000003,0.00019178,2]
[375788054,1753746649497,-460.0,0.00019452,2]
[375788055,1753746649635,-10015.69341776,0.00020579,2]
[375788056,1753746649645,-840.90880427,0.00020579,2]
[375788057,1753746649656,-160.0,0.00020579,2]
[375788058,1753746649667,-216.06083566,0.00020579,2]
[375788059,1753746649677,-214.87999826,0.00020579,2]
[375788060,1753746649687,-160.0,0.00020579,2]
[375788061,1753746649699,-454.6043428,0.00020579,2]
[375788062,1753746649708,-160.0,0.00020579,2]
[375788063,1753746649718,-231.34820253,0.00020579,2]
[375788064,1753746649727,-526.58819812,0.00020579,2]
[375788065,1753746649736,-185.86179119,0.00020714,2]
[375788066,1753746649746,-420.0,0.00020792,2]
[375788067,1753746649756,-2096.85633399,0.00020821,2]
[375788068,1753746649766,-990.15,0.00020821,2]
[375788069,1753746649775,-460.0,0.00020821,2]
[375788070,1753746649785,-460.0,0.00020821,2]
[375788071,1753746649794,-460.0,0.00020821,2]
[375788072,1753746649803,-404.92,0.00020821,2]
[375788073,1753746649813,-460.0,0.00020821,2]
[375788074,1753746649822,-433.6648064,0.00020821,2]
[375788075,1753746649832,-460.0,0.00020821,2]
[375788076,1753746649841,-460.0,0.00020821,2]
[375788077,1753746649851,-460.0,0.00020821,2]
[375788078,1753746649860,-312.43,0.00020821,2]
[375788079,1753746649870,-661.92,0.00020821,2]
[375788080,1753746649880,-548.69,0.00020821,2]
[375788081,1753746649892,-764.89,0.00020821,2]
[375788082,1753746649902,-659.89,0.00020821,2]
[375788083,1753746649912,-858.05,0.00020821,2]
[375788084,1753746649922,-460.0,0.00020821,2]
[375788085,1753746649932,-460.0,0.00020821,2]
[375788086,1753746649944,-215.13,0.00020821,2]
[375788087,1753746649953,-460.0,0.00020821,2]
[375788088,1753746649962,-635.53,0.00020821,2]
[375788089,1753746649971,-460.0,0.00020821,2]
[375788090,1753746649981,-461.46,0.00020821,2]
[375788091,1753746649990,-556.02,0.00020821,2]
[375788092,1753746649999,-460.0,0.00020821,2]
[375788093,1753746650009,-1884.06,0.00020821,2]
[375788094,1753746650019,-460.0,0.00020821,2]
[375788095,1753746650028,-544.24,0.00020821,2]
[375788096,1753746650038,-713.28,0.00020821,2]
[375788097,1753746650051,-460.0,0.00020821,2]
[375788098,1753746650060,-460.0,0.00020821,2]
[375788099,1753746650070,-483.0,0.00020893,2]
[375788100,1753746650079,-990.15,0.00021095,2]
[375788101,1753746650089,-391.8559457,0.00021095,2]
[375788102,1753746650101,-67.9140543,0.00021095,2]
[375788103,1753746650111,-460.0,0.00021095,2]
[375788104,1753746650121,-460.0,0.00021095,2]
[375788105,1753746650131,-460.0,0.00021095,2]
[375788106,1753746650142,-460.0,0.00021095,2]
[375788107,1753746650152,-460.0,0.00021095,2]
[375788108,1753746650161,-661.92,0.00021095,2]
[375788109,1753746650170,-764.89,0.00021095,2]
[375788110,1753746650182,-659.89,0.00021095,2]
[375788111,1753746650191,-858.05,0.00021095,2]
[375788112,1753746650202,-460.0,0.00021095,2]
[375788113,1753746650213,-460.0,0.00021095,2]
[375788114,1753746650222,-460.0,0.00021095,2]
[375788115,1753746650232,-635.53,0.00021095,2]
[375788116,1753746650242,-460.0,0.00021095,2]
[375788117,1753746650251,-461.46,0.00021095,2]
[375788118,1753746650262,-556.02,0.00021095,2]
[375788119,1753746650272,-460.0,0.00021095,2]
[375788120,1753746650282,-1884.06,0.00021095,2]
[375788121,1753746650292,-460.28,0.00021095,2]
[375788122,1753746650301,-544.24,0.00021095,2]
[375788123,1753746650311,-713.28,0.00021095,2]
[375788124,1753746650320,-460.0,0.00021095,2]
[375788125,1753746650330,-460.0,0.00021095,2]
[375788126,1753746650340,-188.2,0.00021344,4]
[375788127,1753746650350,-200.0,0.00021367,15]
[375788128,1753746650359,-200.0,0.00021367,15]
[375788129,1753746650369,-200.0,0.00021367,15]
[375788130,1753746650379,-200.0,0.00021367,15]
[375788131,1753746650388,-320.0,0.00021367,15]
[375788132,1753746650398,-990.15,0.00021369,2]
[375788133,1753746650408,-460.0,0.00021369,2]
[375788134,1753746650418,-460.0,0.00021369,2]
[375788135,1753746650427,-460.0,0.00021369,2]
[375788136,1753746650436,-248.52,0.00021369,2]
[375788137,1753746650448,-460.0,0.00021369,2]
[375788138,1753746650458,-661.92,0.00021369,2]
[375788139,1753746650467,-764.89,0.00021369,2]
[375788140,1753746650477,-659.89,0.00021369,2]
[375788141,1753746650487,-858.05,0.00021369,2]
[375788142,1753746650498,-285.71,0.00021369,2]
[375788143,1753746650508,-460.0,0.00021369,2]
[375788144,1753746650517,-460.0,0.00021369,2]
[375788145,1753746650526,-635.53,0.00021369,2]
[375788146,1753746650536,-460.0,0.00021369,2]
[375788147,1753746650546,-461.46,0.00021369,2]
[375788148,1753746650556,-556.02,0.00021369,2]
[375788149,1753746650566,-460.0,0.00021369,2]
[375788150,1753746650575,-1884.06,0.00021369,2]
[375788151,1753746650585,-544.24,0.00021369,2]
[375788152,1753746650595,-713.28,0.00021369,2]
[375788153,1753746650604,-460.0,0.00021369,2]
[375788154,1753746650614,-460.0,0.00021369,2]
[375788155,1753746650624,-751.839,0.00021621,2]
[375788156,1753746650634,-990.15,0.00021643,2]
[375788157,1753746650643,-460.0,0.00021643,2]
[375788158,1753746650652,-460.0,0.00021643,2]
[375788159,1753746650662,-460.0,0.00021643,2]
[375788160,1753746650672,-460.0,0.00021643,2]
[375788161,1753746650682,-661.92,0.00021643,2]
[375788162,1753746650691,-764.89,0.00021643,2]
[375788163,1753746650702,-659.89,0.00021643,2]
[375788164,1753746650712,-858.05,0.00021643,2]
[375788165,1753746650721,-369.78521663,0.00021643,2]
[375788166,1753746650731,-460.0,0.00021643,2]
[375788167,1753746650740,-635.53,0.00021643,2]
[375788168,1753746650749,-460.0,0.00021643,2]
[375788169,1753746650759,-461.46,0.00021643,2]
[375788170,1753746650768,-556.02,0.00021643,2]
[375788171,1753746650778,-334.69447715,0.00021643,2]
[375788172,1753746650787,-1884.06,0.00021643,2]
[375788173,1753746650797,-544.24,0.00021643,2]
[375788174,1753746650807,-713.28,0.00021643,2]
[375788175,1753746650816,-460.0,0.00021643,2]
[375788176,1753746650827,-460.0,0.00021643,2]
[375788177,1753746650837,-188.2,0.00021796,4]
[375788178,1753746650846,-990.15,0.00021917,2]
[375788179,1753746650855,-460.0,0.00021917,2]
[375788180,1753746650865,-460.0,0.00021917,2]
[375788181,1753746650875,-460.0,0.00021917,2]
[375788182,1753746650885,-460.0,0.00021917,2]
[375788183,1753746650894,-661.92,0.00021917,2]
[375788184,1753746650904,-764.89,0.00021917,2]
[375788185,1753746650914,-659.89,0.00021917,2]
[375788186,1753746650923,-858.05,0.00021917,2]
[375788187,1753746650933,-460.0,0.00021917,2]
[375788188,1753746650943,-635.53,0.00021917,2]
[375788189,1753746650953,-183.8225048,0.00021917,2]
[375788190,1753746650963,-461.46,0.00021917,2]
[375788191,1753746650972,-556.02,0.00021917,2]
[375788192,1753746650982,-1884.06,0.00021917,2]
[375788193,1753746650991,-544.24,0.00021917,2]
[375788194,1753746651001,-713.28,0.00021917,2]
[375788195,1753746651011,-460.0,0.00021917,2]
[375788196,1753746651020,-460.0,0.00021917,2]
[375788197,1753746651029,-17747.09891927,0.00022,2]
[375788198,1753746651041,-398.076,0.00022,2]
[375788199,1753746651053,-1513.05018586,0.00022,2]
[375788200,1753746651238,-1490.36489487,0.00022,2]
[375788201,1753746651248,-1687.76887383,0.00022076,2]
[375788202,1753746651259,-185.86179119,0.00022076,2]
[375788203,1753746651268,-990.15,0.00022191,2]
[375788204,1753746651277,-460.0,0.00022191,2]
[375788205,1753746651287,-460.0,0.00022191,2]
[375788206,1753746651297,-460.0,0.00022191,2]
[375788207,1753746651306,-332.29,0.00022191,2]
[375788208,1753746651317,-661.92,0.00022191,2]
[375788209,1753746651326,-764.89,0.00022191,2]
[375788210,1753746651337,-635.27834575,0.00022191,2]
[375788211,1753746651349,-24.61165425,0.00022191,2]
[375788212,1753746651358,-239.03834575,0.00022191,2]
[375788213,1753746651370,-619.01165425,0.00022191,2]
[375788214,1753746651379,-460.0,0.00022191,2]
[375788215,1753746651389,-635.53,0.00022191,2]
[375788216,1753746651398,-461.46,0.00022191,2]
[375788217,1753746651407,-556.02,0.00022191,2]
[375788218,1753746651417,-1884.06,0.00022191,2]
[375788219,1753746651426,-544.24,0.00022191,2]
[375788220,1753746651435,-713.28,0.00022191,2]
[375788221,1753746651445,-460.0,0.00022191,2]
[375788222,1753746651454,-460.0,0.00022191,2]
[375788223,1753746651463,-188.2,0.00022248,4]
[375788224,1753746651473,-250.0,0.00022455,2]
[375788225,1753746651483,-990.15,0.00022465,2]
[375788226,1753746651492,-374.57716814,0.00022465,2]
[375788227,1753746651501,-460.0,0.00022465,2]
[375788228,1753746651511,-460.0,0.00022465,2]
[375788229,1753746651520,-661.92,0.00022465,2]
[375788230,1753746651529,-764.89,0.00022465,2]
[375788231,1753746651539,-659.89,0.00022465,2]
[375788232,1753746651549,-858.05,0.00022465,2]
[375788233,1753746651559,-460.0,0.00022465,2]
[375788234,1753746651568,-635.53,0.00022465,2]
[375788235,1753746651578,-461.46,0.00022465,2]
[375788236,1753746651587,-556.02,0.00022465,2]
[375788237,1753746651597,-1884.06,0.00022465,2]
[375788238,1753746651607,-713.28,0.00022465,2]
[375788239,1753746651617,-544.24,0.00022465,2]
[375788240,1753746651626,-460.0,0.00022465,2]
[375788241,1753746651636,-460.0,0.00022465,2]
[375788242,1753746651645,-500.0,0.00022489,2]
[375788243,1753746651655,-2253.83324632,0.00022489,2]
[375788244,1753746651664,-192.38919965,0.00022489,2]
[375788245,1753746651674,-2253.83324632,0.00022489,2]
[375788246,1753746651683,-2253.83324632,0.00022489,2]
[375788247,1753746651693,-2253.83324632,0.00022489,2]
[375788248,1753746651703,-2253.83324632,0.00022489,2]
[375788249,1753746651712,-2253.83324632,0.00022489,2]
[375788250,1753746651722,-2253.83324632,0.00022489,2]
[375788251,1753746651732,-2253.83324632,0.00022489,2]
[375788252,1753746651741,-2253.83324632,0.00022489,2]
[375788253,1753746651750,-2253.83324632,0.00022489,2]
[375788254,1753746651760,-2253.83324632,0.00022489,2]
[375788255,1753746651769,-2253.83324632,0.00022489,2]
[375788256,1753746651778,-34118.16346516,0.0002249,7]
[375788257,1753746651790,-2049.19392233,0.0002249,7]
[375788258,1753746651810,-460.0,0.00019178,2]
[375788259,1753746651819,-460.0,0.00019452,2]
[375788260,1753746651829,-23262.03909023,0.0002249,7]
[375788261,1753746682270,268.942415,0.00013699,2]
[375788264,1753746714367,150.0,0.00021502,30]
[375788268,1753746949463,-300.0,0.00019177,2]
[375788269,1753746949490,-92.94246465,0.00019177,2]
[375788270,1753747002891,-312.05753535,0.00019177,2]
[375788271,1753747002914,-300.0,0.00019177,2]
[375788272,1753747002937,-460.0,0.00019178,2]
[375788273,1753747002959,-460.0,0.00019178,2]
[375788274,1753747002982,-460.0,0.00019178,2]
[375788275,1753747003006,-460.0,0.00019178,2]
[375788276,1753747003030,-564.03,0.00019178,2]
[375788277,1753747003053,-460.0,0.00019178,2]
[375788278,1753747003074,-460.0,0.00019178,2]
[375788279,1753747003095,-460.0,0.00019178,2]
[375788280,1753747003117,-460.0,0.00019178,2]
[375788281,1753747003139,-460.0,0.00019178,2]
[375788282,1753747003162,-460.0,0.00019178,2]
[375788283,1753747003186,-481.76,0.00019178,2]
[375788284,1753747003209,-460.0,0.00019178,2]
[375788285,1753747003233,-678.54,0.00019178,2]
[375788286,1753747003267,-1587.42,0.00019178,2]
[375788287,1753747003293,-460.0,0.00019178,2]
[375788288,1753747003315,-460.0,0.00019178,2]
[375788289,1753747003340,-586.07,0.00019178,2]
[375788290,1753747003363,-460.0,0.00019178,2]
[375788291,1753747003384,-460.0,0.00019178,2]
[375788292,1753747003407,-460.0,0.00019178,2]
[375788293,1753747003430,-460.0,0.00019178,2]
[375788294,1753747003451,-460.0,0.00019178,2]
[375788295,1753747003473,-460.0,0.00019178,2]
[375788296,1753747003496,-460.0,0.00019178,2]
[375788297,1753747003518,-460.0,0.00019178,2]
[375788298,1753747003542,-998.84,0.00019178,2]
[375788299,1753747003565,-460.0,0.00019178,2]
[375788300,1753747003587,-460.0,0.00019178,2]
[375788301,1753747003614,-460.0,0.00019178,2]
[375788302,1753747003636,-460.0,0.00019178,2]
[375788303,1753747003658,-460.0,0.00019178,2]
[375788304,1753747003681,-460.0,0.00019178,2]
[375788305,1753747003705,-917.84,0.00019178,2]
[375788306,1753747003728,-460.0,0.00019178,2]
[375788307,1753747003751,-460.0,0.00019178,2]
[375788308,1753747003774,-460.0,0.00019178,2]
[375788309,1753747003796,-460.0,0.00019178,2]
[375788310,1753747003820,-889.01,0.00019178,2]
[375788311,1753747003844,-812.53,0.00019178,2]
[375788312,1753747003867,-460.0,0.00019178,2]
[375788313,1753747003888,-460.0,0.00019178,2]
[375788314,1753747003911,-460.0,0.00019178,2]
[375788315,1753747003935,-231.90246465,0.00019178,2]
[375788316,1753747124085,35971.83775721,0.00017494,2]
[375788317,1753747124108,40000.0,0.00017494,2]
[375788318,1753747124132,40000.0,0.00017494,2]
[375788319,1753747124156,40000.0,0.00017494,2]
[375788320,1753747124179,9628.56669768,0.00017494,2]
[375788328,1753747536164,-300.0,0.00018656,2]
[375788329,1753747536186,-300.0,0.00018656,2]
[375788330,1753747536209,-300.0,0.00018656,2]
[375788331,1753747536232,-300.0,0.00018656,2]
[375788332,1753747536254,-221.56694767,0.00018656,2]
[375788340,1753747646102,-78.43305233,0.00018656,2]
[375788341,1753747646125,-1200.0,0.00018656,2]
[375788342,1753747646147,-1200.0,0.00018656,2]
[375788343,1753747646170,-300.0,0.00018656,2]
[375788344,1753747646192,-3999.11400037,0.00018657,2]
[375788358,1753747757068,200.0,0.00019029,15]
[375788359,1753747757938,200.0,0.00019029,15]
[375788360,1753747758754,200.0,0.00019029,15]
[375788361,1753747759572,200.0,0.00019029,15]
[375788364,1753747784448,162.0,0.000185,2]
[375788392,1753747832024,-300.0,0.00018656,2]
[375788394,1753747832036,-2494.75207408,0.00018657,2]
[375788476,1753747838085,-18406.13392555,0.00018657,2]
[375788477,1753747838095,-162.0,0.000191,3]
[375788478,1753747838105,-500.0,0.00019173,2]
[375788479,1753747838115,-1006.37453044,0.00019177,2]
[375788480,1753747838125,-4508.95660883,0.00019177,2]
[375788481,1753747838134,-460.0,0.00019178,2]
[375788482,1753747838143,-461.1280805,0.00019178,2]
[375788483,1753747838153,-576.43038979,0.00019178,2]
[375788484,1753747838163,-500.0,0.00019178,2]
[375788485,1753747838172,-460.0,0.00019178,2]
[375788486,1753747838182,-295.34233955,0.00019178,2]
[375788487,1753747838194,-164.65766045,0.00019178,2]
[375788488,1753747838204,-390.89803946,0.00019178,2]
[375788489,1753747838607,-69.10196054,0.00019178,2]
[375788490,1753747838616,-460.0,0.00019178,2]
[375788491,1753747838626,-460.0,0.00019178,2]
[375788492,1753747838636,-460.0,0.00019178,2]
[375788493,1753747838646,-282.0921775,0.00019178,2]
[375788494,1753747838656,-460.0,0.00019178,2]
[375788495,1753747838665,-460.0,0.00019178,2]
[375788496,1753747838675,-460.0,0.00019178,2]
[375788497,1753747838685,-460.0,0.00019178,2]
[375788498,1753747838694,-460.0,0.00019178,2]
[375788499,1753747838704,-460.0,0.00019178,2]
[375788500,1753747838714,-460.0,0.00019178,2]
[375788501,1753747838723,-460.0,0.00019178,2]
[375788502,1753747838733,-460.0,0.00019178,2]
[375788503,1753747838742,-495.42,0.00019178,2]
[375788504,1753747838752,-495.42,0.00019178,2]
[375788505,1753747838761,-460.0,0.00019178,2]
[375788506,1753747838770,-460.0,0.00019178,2]
[375788507,1753747838780,-2992.24,0.00019178,2]
[375788508,1753747838790,-460.0,0.00019178,2]
[375788509,1753747838800,-460.0,0.00019178,2]
[375788510,1753747838810,-460.0,0.00019178,2]
[375788511,1753747838820,-460.0,0.00019178,2]
[375788512,1753747838829,-460.0,0.00019178,2]
[375788513,1753747838839,-460.0,0.00019178,2]
[375788514,1753747838849,-584.93,0.00019178,2]
[375788515,1753747838859,-460.0,0.00019178,2]
[375788516,1753747838868,-460.0,0.00019178,2]
[375788517,1753747838878,-463.72857891,0.00019178,2]
[375788518,1753747838888,-563.12805676,0.00019178,2]
[375788519,1753747838897,-460.0,0.00019178,2]
[375788520,1753747838907,-460.0,0.00019178,2]
[375788521,1753747838916,-460.0,0.00019178,2]
[375788522,1753747838926,-1408.18,0.00019178,2]
[375788523,1753747838935,-1292.36,0.00019178,2]
[375788524,1753747838945,-460.0,0.00019178,2]
[375788525,1753747838954,-460.0,0.00019178,2]
[375788526,1753747838964,-460.0,0.00019178,2]
[375788527,1753747838974,-500.0,0.00019178,2]
[375788528,1753747838984,-151.0,0.00019178,2]
[375788529,1753747838994,-151.0,0.00019178,2]
[375788530,1753747839003,-460.0,0.00019178,2]
[375788531,1753747839015,-270.09580886,0.00019178,2]
[375788532,1753747839025,-460.0,0.00019178,2]
[375788533,1753747839036,-460.0,0.00019178,2]
[375788534,1753747839046,-963.32,0.00019178,2]
[375788535,1753747839056,-460.0,0.00019178,2]
[375788536,1753747839067,-460.0,0.00019178,2]
[375788537,1753747839076,-460.0,0.00019178,2]
[375788538,1753747839086,-460.0,0.00019178,2]
[375788539,1753747839096,-1161.04,0.00019178,2]
[375788540,1753747839105,-460.0,0.00019178,2]
[375788541,1753747839114,-1588.16,0.00019178,2]
[375788542,1753747839124,-1032.22,0.00019178,2]
[375788543,1753747839134,-460.0,0.00019178,2]